bitfinex-derivatives/quotes_SOLF0:USTF0_20241215
["timestamp","ask_amount","ask_price","bid_price","bid_amount"]
[1734228106843,6.88884495,221.37,221.29,6.88884495]
[1734228107036,2.2593,221.36,221.33,2.2596]
[1734228108144,2.2594,221.35,221.32,2.2597]
[1734228108439,2.2594,221.35,221.26,6.88884495]
[1734228108440,6.88884495,221.35,221.26,6.88884495]
[1734228108640,2.2598,221.32,221.28,2.2601]
[1734228109042,6.88884495,221.33,221.28,2.2601]
[1734228109243,2.2599,221.31,221.27,2.2602]
[1734228109546,2.2599,221.31,221.26,6.88884495]
[1734228109936,2.2597,221.33,221.29,2.26]
[1734228110147,2.2597,221.33,221.28,6.88884495]
[1734228110943,6.88884495,221.33,221.26,6.88884495]
[1734228111743,2.2599,221.3,221.26,2.2603]
[1734228112338,2.2602,221.27,221.23,2.2606]
[1734228114337,2.2603,221.26,221.23,2.2606]
[1734228114641,6.88884495,221.29,221.22,9.14954495]
[1734228114845,1.4807,221.28,221.22,9.14954495]
[1734228115039,1.4807,221.28,221.2,9.14964495]
[1734228115343,6.88884495,221.27,221.17,2.08]
[1734228115543,8.29964495,221.27,221.19,6.88884495]
[1734228116437,8.29964495,221.27,221.17,6.88884495]
[1734228116438,6.88884495,221.25,221.17,6.88884495]
[1734228116642,8.96884495,221.25,221.17,6.88884495]
[1734228116845,2.2609,221.2,221.17,9.15004495]
[1734228117241,2.2609,221.2,221.17,6.88884495]
[1734228117641,8.96884495,221.25,221.17,6.88884495]
[1734228117939,2.08,221.25,221.19,6.88884495]
[1734228118743,2.2606,221.24,221.2,2.2609]
[1734228119939,2.08,221.25,221.13,5.46358061]
[1734228120143,2.2606,221.23,221.19,2.261]
[1734228120943,2.2608,221.21,221.13,5.46358061]
[1734228121146,6.88884495,221.23,221.13,5.46358061]
[1734228121342,6.88884495,221.21,221.1,2.08]
[1734228121543,6.88884495,221.19,221.1,5.38084923]
[1734228121745,2.08,221.18,221.11,6.88884495]
[1734228122152,2.08,221.18,221.11,9.15064495]
[1734228122944,2.2613,221.16,221.11,9.15064495]
[1734228124154,2.2614,221.15,221.11,6.88884495]
[1734228124651,2.2614,221.15,221.1,2.2619]
[1734228125042,6.88884495,221.17,221.02,2.0433]
[1734228125346,6.88884495,221.17,221.06,5.3736253]
[1734228125556,2.08,221.18,221.05,6.88884495]
[1734228125852,6.88884495,221.16,221.07,6.88884495]
[1734228126042,6.88884495,221.16,221.09,6.88884495]
[1734228126646,2.2617,221.13,221.09,6.88884495]
[1734228126948,2.08,221.18,221.11,6.88884495]
[1734228126949,8.96884495,221.18,221.11,6.88884495]
[1734228127150,2.08,221.18,221.11,6.88884495]
[1734228127351,2.08,221.18,221.11,9.15054495]
[1734228127545,8.96884495,221.18,221.11,9.15054495]
[1734228128053,2.2614,221.16,221.11,9.15054495]
[1734228128853,2.2614,221.16,221.12,2.2617]
[1734228129446,2.8538,221.19,221.13,2.2616]
[1734228129648,4.9338,221.19,221.11,6.88884495]
[1734228130052,2.2612,221.18,221.13,2.2616]
[1734228130252,4.9338,221.19,221.13,2.2616]
[1734228130846,2.2611,221.18,221.13,2.2616]
[1734228131050,2.08,221.19,221.13,6.88884495]
[1734228131449,8.96884495,221.22,221.13,6.88884495]
[1734228132249,6.88884495,221.2,221.13,6.88884495]
[1734228132455,6.88884495,221.2,221.11,6.88884495]
[1734228132656,6.88884495,221.18,221.11,6.88884495]
[1734228133052,2.08,221.17,221.09,6.88884495]
[1734228133254,6.88884495,221.16,221.07,6.88884495]
[1734228133449,6.88884495,221.16,221.07,9.15104495]
[1734228133450,2.2618,221.11,221.07,9.15104495]
[1734228133655,2.2618,221.11,221.07,6.88884495]
[1734228134656,2.2618,221.11,221.08,2.2621]
[1734228135661,2.08,221.21,221.09,6.88884495]
[1734228135850,2.08,221.21,221.03,2.0459]
[1734228135851,6.88884495,221.2,221.12,6.88884495]
[1734228136955,6.88884495,221.2,221.1,2.08]
[1734228137260,2.2613,221.16,221.12,2.2617]
[1734228137662,6.88884495,221.2,221.13,2.2616]
[1734228137663,2.2612,221.17,221.13,2.2616]
[1734228141357,6.88884495,221.18,221.11,6.88884495]
[1734228141555,2.12,221.2,221.03,2.0459]
[1734228141556,6.88884495,221.16,221.08,6.88884495]
[1734228141955,2.2617,221.13,221.08,6.88884495]
[1734228142559,2.2618,221.12,221.08,6.88884495]
[1734228142761,2.2618,221.12,221.03,2.0459]
[1734228142762,6.88884495,221.14,221.06,6.88884495]
[1734228143162,2.2616,221.13,221.09,2.262]
[1734228143861,2.12,221.15,221.1,2.2619]
[1734228144060,6.88884495,221.18,221.1,6.88884495]
[1734228144262,13.41934495,221.19,221.1,6.88884495]
[1734228145363,6.88884495,221.16,221.1,2.2619]
[1734228145664,6.88884495,221.16,221.08,6.88884495]
[1734228146564,6.88884495,221.16,221.11,2.2618]
[1734228146565,2.2615,221.14,221.11,2.2618]
[1734228146759,2.2615,221.14,221.08,6.88884495]
[1734228146960,6.88884495,221.17,221.08,6.88884495]
[1734228147166,2.2614,221.16,221.12,2.2616]
[1734228147668,2.2614,221.16,221.1,6.88884495]
[1734228147858,2.2614,221.16,221.11,2.2618]
[1734228148063,2.2614,221.16,221.1,6.88884495]
[1734228148263,2.2615,221.15,221.1,6.88884495]
[1734228149659,6.88884495,221.17,221.12,2.2616]
[1734228149660,2.2613,221.16,221.12,2.2616]
[1734228150268,6.88884495,221.17,221.12,2.2616]
[1734228150468,2.2614,221.15,221.12,2.2616]
[1734228151162,2.12,221.14,221.07,6.88884495]
[1734228151362,9.00884495,221.18,221.09,6.88884495]
[1734228151565,2.2614,221.16,221.12,2.2617]
[1734228152159,2.2613,221.17,221.12,2.2617]
[1734228152359,9.00884495,221.18,221.12,2.2617]
[1734228153264,2.2614,221.16,221.12,2.2617]
[1734228153870,2.2612,221.17,221.11,6.88884495]
[1734228155067,2.2612,221.17,221.13,2.2616]
[1734228157271,2.2615,221.15,221.11,2.2617]
[1734228157771,2.2613,221.17,221.13,2.2616]
[1734228157971,6.88884495,221.18,221.13,2.2616]
[1734228158163,6.88884495,221.18,221.09,6.88884495]
[1734228158564,2.2615,221.15,221.09,6.88884495]
[1734228158770,6.88884495,221.18,221.09,6.88884495]
[1734228158965,6.88884495,221.16,221.09,6.88884495]
[1734228159672,2.2617,221.12,221.09,9.15084495]
[1734228159871,6.88884495,221.16,221.09,9.15084495]
[1734228159872,6.88884495,221.16,221.09,6.88884495]
[1734228160373,2.2618,221.12,221.09,9.15084495]
[1734228160775,2.2618,221.12,221.09,2.262]
[1734228161171,2.2617,221.13,221.1,2.2619]
[1734228163372,9.00884495,221.14,221.05,2.12]
[1734228163572,6.88884495,221.12,221.05,6.88884495]
[1734228163873,2.2623,221.07,221.04,2.48683]
[1734228164269,6.88884495,221.12,221.04,9.37567495]
[1734228164475,2.262,221.1,221.04,7.11317495]
[1734228164674,2.262,221.1,221.06,6.88884495]
[1734228165680,2.262,221.1,221.07,2.2622]
[1734228166369,2.2621,221.09,221.06,2.2623]
[1734228166572,6.88884495,221.12,221.06,2.2623]
[1734228167474,2.262,221.1,221.06,2.2623]
[1734228169184,6.88884495,221.12,221.06,2.2623]
[1734228169679,6.88884495,221.12,221.04,0.22433]
[1734228169878,2.262,221.1,221.07,2.2622]
[1734228172279,2.262,221.1,221.06,2.2623]
[1734228172480,2.2621,221.09,221.06,2.2623]
[1734228172875,2.2621,221.09,221.04,7.11317495]
[1734228172876,2.2619,221.1,221.05,2.2624]
[1734228173081,6.88884495,221.12,221.05,2.2624]
[1734228174881,2.2621,221.09,221.05,2.2624]
[1734228175683,2.2621,221.08,221.05,2.2624]
[1734228176179,6.88884495,221.1,221.04,0.22433]
[1734228176382,4.5223,221.18,221.04,0.22433]
[1734228176383,2.2624,221.05,221.04,0.22433]
[1734228182285,1.3948,221.09,221.04,0.22433]
[1734228183189,2.2624,221.06,221.04,0.22433]
[1734228183389,1.3948,221.09,221.04,0.22433]
[1734228183587,245.81691904,221.22,221.09,2.262]
[1734228183588,2.1,221.12,221.09,2.262]
[1734228184192,2.1,221.12,221.05,6.88884495]
[1734228184487,5.99594856,221.16,221.07,6.88884495]
[1734228184694,2.1,221.15,221.07,6.88884495]
[1734228185197,2.2617,221.13,221.1,2.2619]
[1734228187891,2.1,221.15,221.09,6.88884495]
[1734228188089,1.4094,221.17,221.09,6.88884495]
[1734228188295,8.29824495,221.17,221.09,6.88884495]
[1734228189093,10.55954495,221.17,221.12,2.2616]
[1734228189292,10.55954495,221.17,221.09,6.88884495]
[1734228189293,8.29824495,221.17,221.09,6.88884495]
[1734228190101,2.2613,221.16,221.12,2.2617]
[1734228191894,2.2615,221.15,221.12,2.2617]
[1734228192095,6.88884495,221.15,221.1,2.2618]
[1734228192602,2.2618,221.12,221.08,2.2621]
[1734228193305,2.2618,221.12,221.09,2.262]
[1734228196898,2.2617,221.13,221.09,2.262]
[1734228197106,2.1,221.14,221.09,2.262]
[1734228197502,8.98884495,221.14,221.07,6.88884495]
[1734228198099,2.262,221.1,221.07,6.88884495]
[1734228198306,8.98884495,221.14,221.06,2.2623]
[1734228198707,2.2621,221.09,221.05,9.15124495]
[1734228200611,6.88884495,221.12,221.05,6.88884495]
[1734228200810,2.262,221.1,221.07,2.2622]
[1734228201015,1.507,221.13,221.05,6.88884495]
[1734228201316,2.2621,221.09,221.06,2.2623]
[1734228201611,6.88884495,221.1,221.0,2.31856]
[1734228201811,2.2625,221.05,221.01,9.15164495]
[1734228203819,2.2625,221.05,221.02,2.2627]
[1734228204614,2.06,221.09,221.04,2.2625]
[1734228205516,2.2622,221.08,221.04,2.2625]
[1734228205922,2.2622,221.08,221.03,6.88884495]
[1734228206115,2.2622,221.08,221.05,2.2624]
[1734228206312,2.2619,221.11,221.05,6.88884495]
[1734228206813,2.262,221.1,221.07,2.2622]
[1734228208216,2.2621,221.08,221.05,2.2624]
[1734228208420,8.40104495,221.12,221.04,6.88884495]
[1734228208823,2.262,221.1,221.05,2.2624]
[1734228209018,8.40104495,221.12,221.02,2.06]
[1734228209215,8.40104495,221.12,221.04,6.88884495]
[1734228209621,2.2621,221.09,221.06,2.2623]
[1734228211122,2.262,221.1,221.06,2.2623]
[1734228211318,2.262,221.1,221.07,2.2622]
[1734228213925,8.40104495,221.12,221.02,2.06]
[1734228214120,2.262,221.09,221.06,2.2623]
[1734228215329,8.40104495,221.12,221.04,2.2625]
[1734228215532,8.40104495,221.12,221.03,6.88884495]
[1734228216429,8.40104495,221.12,221.05,2.2624]
[1734228217228,2.2621,221.09,221.05,2.2624]
[1734228220525,2.2621,221.09,221.03,6.88884495]
[1734228220732,2.2621,221.09,221.06,2.2623]
[1734228220932,2.262,221.1,221.05,6.88884495]
[1734228221132,1.507,221.13,221.1,2.2619]
[1734228221329,2.06,221.15,221.1,2.2619]
[1734228221634,2.2616,221.14,221.09,6.88884495]
[1734228221833,2.2616,221.14,221.11,2.2618]
[1734228222530,2.2616,221.13,221.1,2.2619]
[1734228222932,2.06,221.15,221.07,8.94884495]
[1734228222933,8.94884495,221.15,221.07,8.94884495]
[1734228223141,2.2618,221.11,221.07,2.06]
[1734228223436,2.2618,221.11,221.07,8.94884495]
[1734228224224,6.88884495,221.15,221.09,2.262]
[1734228224426,2.2617,221.13,221.07,2.06]
[1734228224636,2.2617,221.13,221.08,6.88884495]
[1734228225833,2.2617,221.13,221.1,2.2619]
[1734228226133,2.2618,221.12,221.09,2.262]
[1734228228742,6.88884495,221.13,221.01,2.0453]
[1734228229048,6.88884495,221.13,221.03,6.88884495]
[1734228229241,2.04,221.12,221.03,6.88884495]
[1734228229437,2.2621,221.09,221.05,2.2624]
[1734228229842,2.2621,221.09,221.03,6.88884495]
[1734228230142,2.2621,221.09,221.06,2.2623]
[1734228230742,2.04,221.12,221.05,6.88884495]
[1734228230945,2.262,221.1,221.07,2.2622]
[1734228232640,2.2616,221.14,221.09,2.2619]
[1734228232939,8.92884495,221.15,221.02,2.04]
[1734228233442,8.92884495,221.15,221.07,6.88884495]
[1734228234343,2.2618,221.12,221.09,2.262]
[1734228236243,6.88884495,221.13,221.01,1.1826]
[1734228236439,6.88884495,221.13,221.03,6.88884495]
[1734228236641,6.88884495,221.11,221.03,6.88884495]
[1734228236841,2.04,221.1,221.03,6.88884495]
[1734228237446,2.04,221.1,221.0,2.04]
[1734228237745,2.2622,221.08,221.03,2.2626]
[1734228237938,2.04,221.1,221.03,2.2626]
[1734228238649,2.2623,221.07,221.03,2.2626]
[1734228239152,2.2623,221.07,221.04,2.2625]
[1734228239349,2.04,221.1,221.04,6.88884495]
[1734228239546,2.2619,221.11,221.04,6.88884495]
[1734228240046,2.262,221.1,221.06,2.2623]
[1734228240852,3.5653,221.12,221.06,6.88884495]
[1734228241646,5.8271,221.12,221.06,6.88884495]
[1734228242243,3.5653,221.12,221.1,2.2619]
[1734228242451,1.5253,221.12,221.1,2.2619]
[1734228243850,1.4094,221.17,221.08,6.88884495]
[1734228244051,2.2615,221.14,221.11,2.2618]
[1734228244954,3.4494,221.17,221.12,2.2617]
[1734228244955,2.2614,221.15,221.12,2.2617]
[1734228245145,1.4448,221.18,221.12,6.88884495]
[1734228245546,3.7059,221.18,221.15,2.2614]
[1734228246748,8.92884495,221.21,221.14,6.88884495]
[1734228247355,9.14974495,221.21,221.14,6.88884495]
[1734228247853,2.2609,221.21,221.14,6.88884495]
[1734228248057,2.2609,221.21,221.17,2.2611]
[1734228248652,2.2607,221.22,221.18,2.261]
[1734228250849,5.31002768,221.27,221.16,6.88884495]
[1734228251056,6.88884495,221.24,221.18,6.88884495]
[1734228251552,2.2607,221.23,221.19,2.2609]
[1734228253858,8.37754495,221.28,221.2,6.88884495]
[1734228254058,2.2602,221.27,221.23,2.2605]
[1734228255359,2.2603,221.26,221.23,2.2605]
[1734228257056,10.63774495,221.28,221.24,2.2605]
[1734228257361,6.88884495,221.28,221.2,6.88884495]
[1734228257761,2.2603,221.26,221.2,6.88884495]
[1734228257957,6.88884495,221.28,221.2,6.88884495]
[1734228258160,2.2605,221.24,221.19,2.261]
[1734228258358,6.88884495,221.26,221.19,2.261]
[1734228259463,6.88884495,221.24,221.16,5.30526707]
[1734228259763,6.88884495,221.24,221.15,6.88884495]
[1734228259764,6.88884495,221.22,221.15,6.88884495]
[1734228259955,2.261,221.2,221.16,2.2612]
[1734228261462,2.261,221.19,221.16,2.2612]
[1734228261960,6.88884495,221.22,221.12,2.04]
[1734228262262,6.88884495,221.22,221.13,6.88884495]
[1734228262562,6.88884495,221.2,221.13,6.88884495]
[1734228262766,2.2613,221.16,221.13,6.88884495]
[1734228263766,8.92884495,221.2,221.13,6.88884495]
[1734228263968,2.2615,221.14,221.1,9.15064495]
[1734228264467,6.88884495,221.18,221.1,6.88884495]
[1734228264664,2.2614,221.15,221.11,2.2618]
[1734228266364,2.2612,221.18,221.12,6.88884495]
[1734228266758,1.4124,221.19,221.12,6.88884495]
[1734228267968,2.2615,221.15,221.11,2.2618]
[1734228268164,1.4124,221.19,221.06,2.04]
[1734228268165,6.88884495,221.16,221.06,2.04]
[1734228268368,8.92884495,221.16,221.08,6.88884495]
[1734228268961,2.2617,221.13,221.09,2.262]
[1734228269171,2.2617,221.13,221.08,6.88884495]
[1734228269965,2.04,221.16,221.1,6.88884495]
[1734228270166,2.2615,221.14,221.1,9.15074495]
[1734228272070,2.04,221.16,221.1,6.88884495]
[1734228272280,2.2614,221.15,221.11,2.2618]
[1734228274070,2.04,221.16,221.08,5.55670926]
[1734228274071,2.04,221.16,221.14,6.88884495]
[1734228274371,1.4124,221.19,221.14,6.88884495]
[1734228275267,2.04,221.2,221.14,6.88884495]
[1734228275663,2.2611,221.19,221.16,2.2613]
[1734228277571,2.2609,221.21,221.17,2.2612]
[1734228277771,2.2609,221.21,221.16,6.88884495]
[1734228278265,2.2609,221.21,221.17,2.2612]
[1734228279569,2.2609,221.21,221.16,6.88884495]
[1734228279769,10.38174495,221.27,221.19,6.88884495]
[1734228281171,2.2604,221.25,221.21,2.2608]
[1734228281372,10.38174495,221.27,221.21,2.2608]
[1734228281976,2.04,221.26,221.21,2.2608]
[1734228282574,2.2605,221.25,221.21,2.2608]
[1734228284877,2.2605,221.25,221.19,9.14974495]
[1734228285274,2.2605,221.25,221.19,6.88884495]
[1734228285484,2.2605,221.25,221.2,2.2609]
[1734228285682,2.2606,221.23,221.08,5.55670926]
[1734228285979,6.88884495,221.25,221.17,9.15004495]
[1734228286580,2.2608,221.21,221.17,6.88884495]
[1734228287180,2.2607,221.22,221.17,9.15004495]
[1734228287883,2.2607,221.23,221.18,2.2611]
[1734228288080,6.88884495,221.25,221.19,6.88884495]
[1734228288883,9.14934495,221.25,221.2,2.2609]
[1734228289985,2.2605,221.25,221.2,2.2609]
[1734228290483,6.88884495,221.25,221.19,6.88884495]
[1734228291382,6.88884495,221.25,221.18,2.261]
[1734228291683,6.88884495,221.25,221.17,6.88884495]
[1734228291684,2.2608,221.21,221.17,6.88884495]
[1734228293687,2.2608,221.21,221.17,9.15004495]
[1734228296891,2.04,221.22,221.14,9.15024495]
[1734228296892,2.261,221.19,221.14,9.15024495]
[1734228297186,8.35444495,221.21,221.12,6.88884495]
[1734228297388,9.86974495,221.21,221.12,6.88884495]
[1734228298591,2.2612,221.17,221.12,9.15054495]
[1734228300094,2.2615,221.15,221.12,6.88884495]
[1734228300495,2.04,221.18,221.1,9.15074495]
[1734228300698,2.2616,221.14,221.1,6.88884495]
[1734228301391,2.2614,221.16,221.12,6.88884495]
[1734228301593,2.04,221.18,221.12,6.88884495]
[1734228302193,2.2613,221.16,221.12,9.15054495]
[1734228302695,2.2613,221.16,221.12,6.88884495]
[1734228305694,2.2613,221.16,221.11,2.2617]
[1734228306696,2.2613,221.16,221.11,9.15054495]
[1734228308197,4.3012,221.18,221.13,2.2616]
[1734228308394,2.04,221.2,221.15,6.88884495]
[1734228308992,2.2609,221.2,221.15,6.88884495]
[1734228310597,2.2609,221.2,221.16,2.2613]
[1734228312793,2.04,221.24,221.19,6.88884495]
[1734228313793,2.04,221.24,221.19,9.14984495]
[1734228313993,8.34174495,221.27,221.19,9.14984495]
[1734228314293,2.04,221.26,221.19,9.14984495]
[1734228314688,1.4529,221.27,221.19,6.88884495]
[1734228314892,2.04,221.27,221.21,6.88884495]
[1734228315692,4.3002,221.27,221.22,2.2607]
[1734228318295,2.2603,221.26,221.22,2.2607]
[1734228318494,8.92884495,221.27,221.19,8.92884495]
[1734228318694,8.92884495,221.27,221.19,6.88884495]
[1734228320719,8.92884495,221.27,221.09,2.1083]
[1734228321003,8.92884495,221.27,221.18,6.88884495]
[1734228321605,2.2606,221.23,221.18,6.88884495]
[1734228322205,2.2606,221.23,221.17,2.2612]
[1734228322406,2.2606,221.23,221.18,6.88884495]
[1734228326002,2.2606,221.23,221.18,9.14994495]
[1734228326907,2.2606,221.24,221.19,2.261]
[1734228327109,2.2606,221.24,221.2,6.88884495]
[1734228328507,2.2604,221.26,221.2,6.88884495]
[1734228329011,2.04,221.27,221.22,6.88884495]
[1734228329507,8.41684495,221.3,221.22,6.88884495]
[1734228329710,4.3002,221.28,221.22,6.88884495]
[1734228329914,2.2602,221.28,221.22,6.88884495]
[1734228330813,2.2602,221.28,221.24,2.2605]
[1734228332715,8.41684495,221.3,221.24,6.88884495]
[1734228332908,2.04,221.3,221.26,2.2603]
[1734228333110,2.04,221.3,221.24,6.88884495]
[1734228334515,2.2602,221.28,221.24,6.88884495]
[1734228337108,8.92884495,221.3,221.24,6.88884495]
[1734228337310,2.2604,221.26,221.21,9.14954495]
[1734228337715,2.2604,221.26,221.21,6.88884495]
[1734228337916,2.2604,221.26,221.22,2.2607]
[1734228338815,2.2604,221.26,221.23,6.88884495]
[1734228339018,2.2604,221.26,221.22,2.2607]
[1734228339211,2.2604,221.26,221.23,6.88884495]
[1734228342314,2.2604,221.26,221.18,2.04]
[1734228342315,2.04,221.26,221.2,6.88884495]
[1734228343621,2.04,221.26,221.18,5.36563199]
[1734228343818,2.04,221.26,221.19,6.88884495]
[1734228344722,2.2607,221.23,221.19,6.88884495]
[1734228346218,6.88884495,221.25,221.16,2.2612]
[1734228346414,6.88884495,221.23,221.15,6.88884495]
[1734228346620,2.04,221.22,221.15,6.88884495]
[1734228347725,2.2612,221.17,221.15,6.88884495]
[1734228354535,2.04,221.22,221.16,2.2613]
[1734228354726,2.06,221.21,221.15,6.88884495]
[1734228355736,2.2609,221.2,221.15,9.15024495]
[1734228356229,2.2612,221.18,221.15,6.88884495]
[1734228357732,2.2612,221.17,221.15,6.88884495]
[1734228358131,6.88884495,221.2,221.09,1.1805]
[1734228358332,8.94884495,221.21,221.13,6.88884495]
[1734228359729,2.2614,221.16,221.13,6.88884495]
[1734228360433,2.2614,221.15,221.13,6.88884495]
[1734228361335,2.2611,221.19,221.13,9.15044495]
[1734228361643,2.06,221.21,221.15,6.88884495]
[1734228362130,2.2611,221.18,221.15,6.88884495]
[1734228362526,2.261,221.19,221.15,9.15024495]
[1734228363332,2.261,221.19,221.15,6.88884495]
[1734228365739,2.2611,221.18,221.15,6.88884495]
[1734228368537,2.9537,221.24,221.17,6.88884495]
[1734228368739,2.9537,221.24,221.19,6.88884495]
[1734228369136,2.2607,221.23,221.19,6.88884495]
[1734228369335,2.9537,221.24,221.14,5.48288615]
[1734228369532,2.9537,221.24,221.17,6.88884495]
[1734228369733,2.2609,221.21,221.17,6.88884495]
[1734228370939,2.2609,221.21,221.19,6.88884495]
[1734228373942,2.2607,221.22,221.19,6.88884495]
[1734228374239,5.3949167,221.29,221.19,9.14984495]
[1734228374240,2.06,221.26,221.19,9.14984495]
[1734228374439,12.28376165,221.29,221.19,9.14984495]
[1734228374642,2.2604,221.25,221.2,2.2609]
[1734228374849,2.2604,221.25,221.21,6.88884495]
[1734228375339,2.2605,221.24,221.21,6.88884495]
[1734228377143,2.2603,221.26,221.21,9.14964495]
[1734228377440,2.06,221.28,221.21,2.2608]
[1734228377646,2.06,221.28,221.15,3.241]
[1734228377647,6.88884495,221.27,221.15,3.241]
[1734228377943,6.88884495,221.27,221.18,6.88884495]
[1734228378337,6.88884495,221.25,221.16,2.2613]
[1734228378537,2.04,221.24,221.15,6.88884495]
[1734228378941,2.04,221.24,221.17,6.88884495]
[1734228380246,2.2608,221.21,221.17,6.88884495]
[1734228383451,2.04,221.24,221.16,2.2613]
[1734228383751,2.261,221.19,221.16,6.88884495]
[1734228384653,3.4919,221.24,221.16,6.88884495]
[1734228384654,2.2609,221.2,221.16,6.88884495]
[1734228385848,3.4919,221.24,221.15,2.2614]
[1734228386054,3.4919,221.24,221.16,6.88884495]
[1734228386055,2.261,221.19,221.16,6.88884495]
[1734228386854,5.0052,221.24,221.16,6.88884495]
[1734228387063,2.2609,221.2,221.16,6.88884495]
[1734228387361,5.54574935,221.31,221.17,2.2612]
[1734228387660,3.5696,221.3,221.2,6.88884495]
[1734228387850,6.88884495,221.29,221.2,6.88884495]
[1734228388056,2.2605,221.25,221.2,6.88884495]
[1734228388255,2.04,221.25,221.18,6.88884495]
[1734228388454,8.92884495,221.25,221.18,6.88884495]
[1734228389062,2.2608,221.22,221.18,6.88884495]
[1734228393468,2.2608,221.22,221.18,9.14994495]
[1734228393766,8.92884495,221.25,221.18,9.14994495]
[1734228394357,2.04,221.25,221.2,2.2608]
[1734228394961,2.04,221.25,221.19,6.88884495]
[1734228395158,2.2605,221.24,221.19,6.88884495]
[1734228397462,2.2606,221.23,221.19,6.88884495]
[1734228397662,2.04,221.25,221.19,9.14984495]
[1734228397859,2.04,221.25,221.19,6.88884495]
[1734228398563,2.04,221.25,221.21,6.88884495]
[1734228398964,2.2603,221.27,221.23,2.2606]
[1734228399772,8.04130979,221.28,221.18,2.04]
[1734228399973,2.2604,221.25,221.2,6.88884495]
[1734228401066,2.2604,221.25,221.2,9.14964495]
[1734228401473,2.04,221.24,221.15,2.04]
[1734228401774,2.2607,221.22,221.18,6.88884495]
[1734228402072,2.2607,221.22,221.2,6.88884495]
[1734228402773,2.2604,221.26,221.2,6.88884495]
[1734228403566,4.3002,221.27,221.22,6.88884495]
[1734228404673,4.3002,221.27,221.23,2.2606]
[1734228406871,8.26096497,221.29,221.23,2.2606]
[1734228407072,4.3001,221.29,221.23,2.2606]
[1734228407875,2.04,221.29,221.22,6.88884495]
[1734228408470,7.53046497,221.3,221.22,6.88884495]
[1734228408471,2.2603,221.26,221.22,6.88884495]
[1734228408871,2.2602,221.27,221.22,6.88884495]
[1734228409081,2.2602,221.27,221.23,2.2606]
[1734228409980,2.2602,221.27,221.22,6.88884495]
[1734228410180,2.2603,221.26,221.22,6.88884495]
[1734228413581,4.3002,221.28,221.22,9.14954495]
[1734228413782,2.04,221.28,221.22,9.14954495]
[1734228414582,2.2602,221.27,221.22,9.14954495]
[1734228419486,2.04,221.28,221.22,6.88884495]
[1734228420686,2.2604,221.26,221.22,6.88884495]
[1734228421080,2.2604,221.26,221.22,9.14954495]
[1734228421281,2.04,221.28,221.22,9.14954495]
[1734228422684,2.04,221.28,221.24,2.2605]
[1734228422982,1.5296,221.3,221.25,6.88884495]
[1734228423188,2.2601,221.28,221.25,6.88884495]
[1734228426182,2.2601,221.28,221.22,2.2606]
[1734228426384,2.04,221.27,221.13,2.108]
[1734228426583,8.92884495,221.27,221.14,2.04]
[1734228426785,8.92884495,221.27,221.19,6.88884495]
[1734228427890,2.2607,221.23,221.19,6.88884495]
[1734228428483,2.2604,221.25,221.19,6.88884495]
[1734228428787,8.92884495,221.27,221.19,6.88884495]
[1734228429792,2.2607,221.23,221.19,6.88884495]
[1734228432595,2.2609,221.2,221.18,6.88884495]
[1734228433197,2.04,221.23,221.18,6.88884495]
[1734228433397,2.04,221.23,221.14,2.04]
[1734228433398,2.04,221.23,221.2,6.88884495]
[1734228434397,4.3006,221.23,221.2,6.88884495]
[1734228436396,6.00168386,221.26,221.22,6.88884495]
[1734228436793,2.04,221.29,221.22,6.88884495]
[1734228437000,2.2601,221.28,221.23,2.2606]
[1734228437501,9.57128386,221.3,221.23,2.2606]
[1734228437898,2.2601,221.28,221.23,2.2606]
[1734228439003,2.2602,221.27,221.22,9.14954495]
[1734228439205,2.04,221.27,221.22,6.88884495]
[1734228439798,2.04,221.27,221.2,6.88884495]
[1734228440997,2.2604,221.25,221.2,9.14974495]
[1734228441398,2.2604,221.25,221.2,2.2609]
[1734228441702,2.2604,221.25,221.2,9.14974495]
[1734228442299,2.04,221.27,221.22,6.88884495]